[Event "Titled Tuesday Blitz August 23 Late 2022"]
[White "Aldokhin, Ivan"]
[Black "Bacrot, Etienne"]
[WhiteFideId "24115720"]
[BlackFideId "605506"]
[WhiteElo "2246"]
[BlackElo "2673"]
[Result "1/2-1/2"]
[Round "06"]
[TimeControl "180+1"]
[Date "2022.08.23"]
[WhiteClock "0:00:06"]
[BlackClock "0:00:10"]

1. e4 {[%clk 0:02:57]}  c5 {[%clk 0:02:59]} 2. Nf3 {[%clk 0:02:57]}  d6 {[%clk 0:03:00]} 3. d4 {[%clk 0:02:58]}  cxd4 {[%clk 0:03:00]} 4. Nxd4 {[%clk 0:02:59]}  Nf6 {[%clk 0:03:00]} 5. Nc3 {[%clk 0:02:59]}  Nc6 {[%clk 0:03:00]} 6. Bc4 {[%clk 0:02:58]}  Qb6 {[%clk 0:02:59]} 7. Nb3 {[%clk 0:02:53]}  e6 {[%clk 0:02:58]} 8. f4 {[%clk 0:02:49]}  Be7 {[%clk 0:02:52]} 9. Qf3 {[%clk 0:02:47]}  Nb4 {[%clk 0:02:47]} 10. Qe2 {[%clk 0:02:27]}  a6 {[%clk 0:02:38]} 11. a3 {[%clk 0:02:17]}  Nc6 {[%clk 0:02:37]} 12. g4 {[%clk 0:02:08]}  h6 {[%clk 0:02:30]} 13. Be3 {[%clk 0:01:50]}  Qc7 {[%clk 0:02:29]} 14. a4 {[%clk 0:01:51]}  d5 {[%clk 0:02:01]} 15. exd5 {[%clk 0:01:33]}  exd5 {[%clk 0:01:51]} 16. Nxd5 {[%clk 0:01:34]}  Nxd5 {[%clk 0:01:50]} 17. Bxd5 {[%clk 0:01:34]}  Nb4 {[%clk 0:01:41]} 18. Be4 {[%clk 0:01:25]}  Be6 {[%clk 0:01:41]} 19. O-O {[%clk 0:01:08]}  Bc4 {[%clk 0:01:37]} 20. Qf3 {[%clk 0:01:02]}  Bxf1 {[%clk 0:01:36]} 21. Rxf1 {[%clk 0:01:01]}  O-O {[%clk 0:01:36]} 22. Nd4 {[%clk 0:00:48]}  Bc5 {[%clk 0:01:25]} 23. c3 {[%clk 0:00:48]}  Nc6 {[%clk 0:01:25]} 24. Nxc6 {[%clk 0:00:23]}  Bxe3+ {[%clk 0:01:24]} 25. Qxe3 {[%clk 0:00:23]}  bxc6 {[%clk 0:01:25]} 26. Qc5 {[%clk 0:00:19]}  Rfe8 {[%clk 0:01:13]} 27. Qxc6 {[%clk 0:00:16]}  Qa7+ {[%clk 0:00:59]} 28. Kh1 {[%clk 0:00:16]}  Rac8 {[%clk 0:00:57]} 29. Qd5 {[%clk 0:00:15]}  Rcd8 {[%clk 0:00:56]} 30. Qc6 {[%clk 0:00:10]}  Re6 {[%clk 0:00:31]} 31. Qc4 {[%clk 0:00:10]}  Qe7 {[%clk 0:00:25]} 32. Bf3 {[%clk 0:00:06]}  Re1 {[%clk 0:00:23]} 33. Kg2 {[%clk 0:00:05]}  Rxf1 {[%clk 0:00:18]} 34. Kxf1 {[%clk 0:00:03]}  Qe3 {[%clk 0:00:16]} 35. Qe4 {[%clk 0:00:03]}  Rd1+ {[%clk 0:00:13]} 36. Kg2 {[%clk 0:00:03]}  Rd2+ {[%clk 0:00:12]} 37. Kh3 {[%clk 0:00:02]}  Qxe4 {[%clk 0:00:11]} 38. Bxe4 {[%clk 0:00:03]}  Rxb2 {[%clk 0:00:12]} 39. Bd3 {[%clk 0:00:03]}  a5 {[%clk 0:00:12]} 40. Kg3 {[%clk 0:00:02]}  Rb3 {[%clk 0:00:11]} 41. Kf3 {[%clk 0:00:02]}  Rxc3 {[%clk 0:00:12]} 42. Ke4 {[%clk 0:00:03]}  Ra3 {[%clk 0:00:12]} 43. Bb5 {[%clk 0:00:03]}  Rh3 {[%clk 0:00:11]} 44. Kd5 {[%clk 0:00:02]}  Rxh2 {[%clk 0:00:10]} 45. Kc5 {[%clk 0:00:03]}  Rh4 {[%clk 0:00:10]} 46. Kb6 {[%clk 0:00:03]}  Rxg4 {[%clk 0:00:10]} 47. Kxa5 {[%clk 0:00:04]}  Rxf4 {[%clk 0:00:11]} 48. Kb6 {[%clk 0:00:04]}  Rf2 {[%clk 0:00:10]} 49. a5 {[%clk 0:00:05]}  Ra2 {[%clk 0:00:10]} 50. a6 {[%clk 0:00:05]}  g5 {[%clk 0:00:11]} 51. a7 {[%clk 0:00:06]}  g4 {[%clk 0:00:11]} 52. Ba6 {[%clk 0:00:06]}  Rb2+ {[%clk 0:00:10]} 53. Bb5 {[%clk 0:00:06]}  Ra2 {[%clk 0:00:10]} 54. Ba6 {[%clk 0:00:06]}  Rb2+ {[%clk 0:00:11]} 55. Ka5 {[%clk 0:00:06]}  Ra2+ {[%clk 0:00:10]} 56. Kb6 {[%clk 0:00:06]} 1/2-1/2


[Site "https://www.chess.com"]

[Event "Titled Tuesday Blitz August 23 Late 2022"]
[White "Deac, Bogdan-Daniel"]
[Black "Tahbaz, Arash"]
[WhiteFideId "1226380"]
[BlackFideId "12528846"]
[WhiteElo "2648"]
[BlackElo "2378"]
[Result "1-0"]
[Round "06"]
[TimeControl "180+1"]
[Date "2022.08.23"]
[WhiteClock "0:00:04"]
[BlackClock "0:00:03"]

1. Nf3 {[%clk 0:03:00]}  g6 {[%clk 0:02:55]} 2. d4 {[%clk 0:03:00]}  Bg7 {[%clk 0:02:55]} 3. g3 {[%clk 0:03:00]}  Nf6 {[%clk 0:02:55]} 4. Bg2 {[%clk 0:03:00]}  O-O {[%clk 0:02:55]} 5. O-O {[%clk 0:02:59]}  d6 {[%clk 0:02:56]} 6. b3 {[%clk 0:03:00]}  e5 {[%clk 0:02:52]} 7. c4 {[%clk 0:02:45]}  e4 {[%clk 0:02:46]} 8. Nfd2 {[%clk 0:02:43]}  Re8 {[%clk 0:02:45]} 9. e3 {[%clk 0:02:42]}  Bf5 {[%clk 0:02:44]} 10. Nc3 {[%clk 0:02:40]}  Nbd7 {[%clk 0:02:42]} 11. h3 {[%clk 0:02:28]}  h5 {[%clk 0:02:42]} 12. f3 {[%clk 0:02:21]}  exf3 {[%clk 0:02:41]} 13. Qxf3 {[%clk 0:02:22]}  c6 {[%clk 0:02:35]} 14. Bb2 {[%clk 0:02:17]}  d5 {[%clk 0:02:19]} 15. Rae1 {[%clk 0:01:33]}  dxc4 {[%clk 0:02:19]} 16. bxc4 {[%clk 0:01:20]}  Nc5 {[%clk 0:02:19]} 17. Ba1 {[%clk 0:01:10]}  Qd7 {[%clk 0:01:41]} 18. dxc5 {[%clk 0:00:53]}  Qxd2 {[%clk 0:01:40]} 19. e4 {[%clk 0:00:53]}  Nd7 {[%clk 0:01:11]} 20. Rd1 {[%clk 0:00:42]}  Qc2 {[%clk 0:00:36]} 21. exf5 {[%clk 0:00:39]}  Ne5 {[%clk 0:00:36]} 22. Qf2 {[%clk 0:00:37]}  Qxf2+ {[%clk 0:00:33]} 23. Rxf2 {[%clk 0:00:36]}  Nxc4 {[%clk 0:00:34]} 24. fxg6 {[%clk 0:00:32]}  fxg6 {[%clk 0:00:35]} 25. Rb1 {[%clk 0:00:17]}  Bd4 {[%clk 0:00:28]} 26. Ne4 {[%clk 0:00:12]}  Bxf2+ {[%clk 0:00:25]} 27. Kxf2 {[%clk 0:00:13]}  Re7 {[%clk 0:00:25]} 28. g4 {[%clk 0:00:10]}  hxg4 {[%clk 0:00:22]} 29. hxg4 {[%clk 0:00:11]}  Rf8+ {[%clk 0:00:17]} 30. Nf6+ {[%clk 0:00:10]}  Kf7 {[%clk 0:00:17]} 31. g5 {[%clk 0:00:10]}  Rd8 {[%clk 0:00:16]} 32. Bf1 {[%clk 0:00:09]}  Rd2+ {[%clk 0:00:16]} 33. Kg1 {[%clk 0:00:09]}  Ne5 {[%clk 0:00:15]} 34. Bg2 {[%clk 0:00:08]}  Nd3 {[%clk 0:00:14]} 35. Bc3 {[%clk 0:00:06]}  Rxa2 {[%clk 0:00:12]} 36. Rf1 {[%clk 0:00:06]}  Ree2 {[%clk 0:00:10]} 37. Bh3 {[%clk 0:00:04]}  Ke7 {[%clk 0:00:09]} 38. Ng8+ {[%clk 0:00:03]}  Ke8 {[%clk 0:00:10]} 39. Nf6+ {[%clk 0:00:03]}  Kd8 {[%clk 0:00:11]} 40. Ng4 {[%clk 0:00:03]}  Rac2 {[%clk 0:00:08]} 41. Bf6+ {[%clk 0:00:03]}  Kc7 {[%clk 0:00:07]} 42. Nh6 {[%clk 0:00:03]}  Rxc5 {[%clk 0:00:07]} 43. Nf7 {[%clk 0:00:03]}  Rc1 {[%clk 0:00:08]} 44. Nh8 {[%clk 0:00:02]}  a5 {[%clk 0:00:06]} 45. Nxg6 {[%clk 0:00:02]}  a4 {[%clk 0:00:06]} 46. Rxc1 {[%clk 0:00:02]}  Nxc1 {[%clk 0:00:05]} 47. Nh4 {[%clk 0:00:03]}  a3 {[%clk 0:00:05]} 48. g6 {[%clk 0:00:03]}  Nd3 {[%clk 0:00:04]} 49. g7 {[%clk 0:00:04]}  Re8 {[%clk 0:00:04]} 50. Be6 {[%clk 0:00:04]}  b5 {[%clk 0:00:03]} 51. Bf7 {[%clk 0:00:04]}  Ra8 {[%clk 0:00:04]} 52. Ng6 {[%clk 0:00:04]}  a2 {[%clk 0:00:03]} 53. Nf8 {[%clk 0:00:05]}  a1=Q+ {[%clk 0:00:04]} 54. Bxa1 {[%clk 0:00:05]}  Rxa1+ {[%clk 0:00:05]} 55. Kh2 {[%clk 0:00:06]}  Nf4 {[%clk 0:00:02]} 56. g8=Q {[%clk 0:00:05]}  Kb6 {[%clk 0:00:03]} 57. Qg4 {[%clk 0:00:04]}  Nd3 {[%clk 0:00:03]} 58. Qd4+ {[%clk 0:00:04]}  Nc5 {[%clk 0:00:03]} 59. Nd7+ {[%clk 0:00:04]} 1-0


[Site "https://www.chess.com"]

[Event "Titled Tuesday Blitz August 23 Late 2022"]
[White "Godzwon, Iwo"]
[Black "Aghasiyev, Kamal"]
[WhiteFideId "21802483"]
[BlackFideId "13402854"]
[WhiteElo "2201"]
[BlackElo "2210"]
[Result "0-1"]
[Round "06"]
[TimeControl "180+1"]
[Date "2022.08.23"]
[WhiteClock "0:00:13"]
[BlackClock "0:00:11"]

1. e4 {[%clk 0:03:00]}  e5 {[%clk 0:02:59]} 2. Nf3 {[%clk 0:02:58]}  Nc6 {[%clk 0:02:59]} 3. Bb5 {[%clk 0:02:56]}  a6 {[%clk 0:02:59]} 4. Ba4 {[%clk 0:02:56]}  Nf6 {[%clk 0:02:59]} 5. O-O {[%clk 0:02:56]}  b5 {[%clk 0:02:59]} 6. Bb3 {[%clk 0:02:57]}  Bc5 {[%clk 0:02:59]} 7. a4 {[%clk 0:02:56]}  b4 {[%clk 0:02:54]} 8. Nxe5 {[%clk 0:02:53]}  Nxe5 {[%clk 0:02:43]} 9. d4 {[%clk 0:02:53]}  Bxd4 {[%clk 0:02:10]} 10. Qxd4 {[%clk 0:02:54]}  Nc6 {[%clk 0:02:07]} 11. Qc5 {[%clk 0:02:19]}  Qe7 {[%clk 0:01:58]} 12. Qxe7+ {[%clk 0:02:19]}  Nxe7 {[%clk 0:01:58]} 13. e5 {[%clk 0:02:20]}  Nfd5 {[%clk 0:01:58]} 14. Rd1 {[%clk 0:02:15]}  Bb7 {[%clk 0:01:58]} 15. Bg5 {[%clk 0:02:12]}  h6 {[%clk 0:01:54]} 16. Bh4 {[%clk 0:02:09]}  Nf4 {[%clk 0:01:35]} 17. f3 {[%clk 0:02:04]}  Bd5 {[%clk 0:01:26]} 18. Nd2 {[%clk 0:02:01]}  g5 {[%clk 0:01:21]} 19. Bg3 {[%clk 0:01:52]}  Ne2+ {[%clk 0:01:17]} 20. Kf2 {[%clk 0:01:52]}  Nxg3 {[%clk 0:01:18]} 21. hxg3 {[%clk 0:01:53]}  Bxb3 {[%clk 0:00:57]} 22. cxb3 {[%clk 0:01:41]}  Nc6 {[%clk 0:00:54]} 23. f4 {[%clk 0:01:37]}  O-O-O {[%clk 0:00:48]} 24. Ne4 {[%clk 0:01:33]}  gxf4 {[%clk 0:00:47]} 25. gxf4 {[%clk 0:01:34]}  Rhg8 {[%clk 0:00:47]} 26. Rac1 {[%clk 0:01:31]}  Rg4 {[%clk 0:00:42]} 27. g3 {[%clk 0:01:31]}  Kb8 {[%clk 0:00:41]} 28. Nf6 {[%clk 0:01:27]}  Rg6 {[%clk 0:00:40]} 29. Nxd7+ {[%clk 0:01:26]}  Kb7 {[%clk 0:00:41]} 30. Nc5+ {[%clk 0:01:24]}  Kb6 {[%clk 0:00:40]} 31. Ne4 {[%clk 0:01:22]}  Rxd1 {[%clk 0:00:36]} 32. Rxd1 {[%clk 0:01:23]}  Na5 {[%clk 0:00:36]} 33. Rd4 {[%clk 0:01:10]}  Nc6 {[%clk 0:00:31]} 34. Rc4 {[%clk 0:01:04]}  Rg8 {[%clk 0:00:30]} 35. Ke3 {[%clk 0:00:55]}  Rd8 {[%clk 0:00:30]} 36. g4 {[%clk 0:00:48]}  Rd1 {[%clk 0:00:29]} 37. Rc2 {[%clk 0:00:47]}  Re1+ {[%clk 0:00:27]} 38. Re2 {[%clk 0:00:45]}  Rg1 {[%clk 0:00:27]} 39. g5 {[%clk 0:00:39]}  h5 {[%clk 0:00:25]} 40. Rh2 {[%clk 0:00:38]}  Ne7 {[%clk 0:00:22]} 41. Nd2 {[%clk 0:00:33]}  Nf5+ {[%clk 0:00:20]} 42. Ke4 {[%clk 0:00:27]}  Ng3+ {[%clk 0:00:20]} 43. Kf3 {[%clk 0:00:28]}  Nf5 {[%clk 0:00:20]} 44. Rxh5 {[%clk 0:00:26]}  Rd1 {[%clk 0:00:20]} 45. Nc4+ {[%clk 0:00:22]}  Kc5 {[%clk 0:00:17]} 46. Rh7 {[%clk 0:00:23]}  Nd4+ {[%clk 0:00:14]} 47. Kg4 {[%clk 0:00:21]}  Rg1+ {[%clk 0:00:14]} 48. Kh3 {[%clk 0:00:14]}  Rh1+ {[%clk 0:00:14]} 49. Kg2 {[%clk 0:00:15]}  Rxh7 {[%clk 0:00:14]} 50. Nd2 {[%clk 0:00:15]}  Nf5 {[%clk 0:00:13]} 51. Ne4+ {[%clk 0:00:15]}  Kd4 {[%clk 0:00:13]} 52. Nf6 {[%clk 0:00:15]}  Rh8 {[%clk 0:00:12]} 53. g6 {[%clk 0:00:12]}  fxg6 {[%clk 0:00:11]} 54. Kf3 {[%clk 0:00:13]}  Rh3+ {[%clk 0:00:11]} 55. Kg4 {[%clk 0:00:13]}  Rg3# {[%clk 0:00:11]} 0-1


[Site "https://www.chess.com"]

[Event "Titled Tuesday Blitz August 23 Late 2022"]
[White "Hansen, Eric"]
[Black "Kosteniuk, Alexandra"]
[WhiteFideId "2606771"]
[BlackFideId "4128125"]
[WhiteElo "2568"]
[BlackElo "2469"]
[Result "1-0"]
[Round "06"]
[TimeControl "180+1"]
[Date "2022.08.23"]
[WhiteClock "0:00:06"]
[BlackClock "0:00:01"]

1. Nf3 {[%clk 0:03:00]}  f5 {[%clk 0:02:59]} 2. d3 {[%clk 0:03:00]}  Nf6 {[%clk 0:02:59]} 3. e4 {[%clk 0:02:59]}  d6 {[%clk 0:02:55]} 4. Nc3 {[%clk 0:02:59]}  e5 {[%clk 0:02:54]} 5. exf5 {[%clk 0:02:58]}  Bxf5 {[%clk 0:02:53]} 6. d4 {[%clk 0:02:59]}  e4 {[%clk 0:02:46]} 7. Nh4 {[%clk 0:02:57]}  Bg4 {[%clk 0:02:46]} 8. Be2 {[%clk 0:02:57]}  Bxe2 {[%clk 0:02:30]} 9. Qxe2 {[%clk 0:02:56]}  d5 {[%clk 0:01:52]} 10. Bg5 {[%clk 0:02:54]}  Bb4 {[%clk 0:01:32]} 11. Qb5+ {[%clk 0:02:46]}  Nc6 {[%clk 0:01:31]} 12. O-O {[%clk 0:02:46]}  Bxc3 {[%clk 0:01:22]} 13. bxc3 {[%clk 0:02:46]}  Rb8 {[%clk 0:01:19]} 14. f3 {[%clk 0:02:14]}  O-O {[%clk 0:01:13]} 15. fxe4 {[%clk 0:02:08]}  dxe4 {[%clk 0:01:13]} 16. Rf5 {[%clk 0:01:39]}  Qd6 {[%clk 0:00:56]} 17. Raf1 {[%clk 0:01:28]}  Ne7 {[%clk 0:00:34]} 18. Qc4+ {[%clk 0:01:21]}  Kh8 {[%clk 0:00:30]} 19. R5f2 {[%clk 0:01:08]}  Ned5 {[%clk 0:00:27]} 20. Nf5 {[%clk 0:00:59]}  Qd7 {[%clk 0:00:28]} 21. h3 {[%clk 0:00:59]}  Rbe8 {[%clk 0:00:25]} 22. Ne3 {[%clk 0:00:46]}  Nxe3 {[%clk 0:00:23]} 23. Bxe3 {[%clk 0:00:47]}  Qd6 {[%clk 0:00:21]} 24. Rf5 {[%clk 0:00:34]}  b6 {[%clk 0:00:20]} 25. Bf4 {[%clk 0:00:33]}  Qd7 {[%clk 0:00:15]} 26. Be5 {[%clk 0:00:33]}  Re6 {[%clk 0:00:08]} 27. d5 {[%clk 0:00:21]}  Rxe5 {[%clk 0:00:08]} 28. Rxe5 {[%clk 0:00:21]}  Qd6 {[%clk 0:00:08]} 29. Qd4 {[%clk 0:00:20]}  h6 {[%clk 0:00:08]} 30. Re6 {[%clk 0:00:19]}  Qd8 {[%clk 0:00:05]} 31. c4 {[%clk 0:00:18]}  Kh7 {[%clk 0:00:04]} 32. Qe5 {[%clk 0:00:17]}  Rf7 {[%clk 0:00:03]} 33. a4 {[%clk 0:00:11]}  Qf8 {[%clk 0:00:02]} 34. Qf5+ {[%clk 0:00:10]}  Kg8 {[%clk 0:00:03]} 35. Qe5 {[%clk 0:00:07]}  Qc5+ {[%clk 0:00:03]} 36. Kh1 {[%clk 0:00:07]}  Qxc4 {[%clk 0:00:03]} 37. Rd1 {[%clk 0:00:05]}  Qe2 {[%clk 0:00:03]} 38. Rg1 {[%clk 0:00:05]}  Qxc2 {[%clk 0:00:02]} 39. d6 {[%clk 0:00:05]}  cxd6 {[%clk 0:00:02]} 40. Rxd6 {[%clk 0:00:06]}  Qxa4 {[%clk 0:00:01]} 41. Qe6 {[%clk 0:00:06]} 1-0


[Site "https://www.chess.com"]

[Event "Titled Tuesday Blitz August 23 Late 2022"]
[White "Harvey, Marcus R"]
[Black "Martinez Alcantara, Jose Eduardo"]
[WhiteFideId "400092"]
[BlackFideId "3805662"]
[WhiteElo "2485"]
[BlackElo "2703"]
[Result "0-1"]
[Round "06"]
[TimeControl "180+1"]
[Date "2022.08.23"]
[WhiteClock "0:00:02"]
[BlackClock "0:01:01"]

1. c4 {[%clk 0:03:00]}  c5 {[%clk 0:03:00]} 2. Nf3 {[%clk 0:03:01]}  Nc6 {[%clk 0:03:00]} 3. d4 {[%clk 0:03:01]}  cxd4 {[%clk 0:03:01]} 4. Nxd4 {[%clk 0:03:02]}  Nf6 {[%clk 0:03:00]} 5. Nc3 {[%clk 0:03:02]}  g6 {[%clk 0:03:00]} 6. e4 {[%clk 0:03:01]}  d6 {[%clk 0:03:00]} 7. Be2 {[%clk 0:03:01]}  Nxd4 {[%clk 0:03:00]} 8. Qxd4 {[%clk 0:03:02]}  Bg7 {[%clk 0:03:01]} 9. Be3 {[%clk 0:03:03]}  O-O {[%clk 0:03:01]} 10. O-O {[%clk 0:03:03]}  Ng4 {[%clk 0:02:59]} 11. Qd2 {[%clk 0:03:03]}  Nxe3 {[%clk 0:02:59]} 12. Qxe3 {[%clk 0:03:03]}  Be6 {[%clk 0:02:59]} 13. Rac1 {[%clk 0:03:03]}  Qb6 {[%clk 0:02:56]} 14. Qd2 {[%clk 0:02:07]}  Rfc8 {[%clk 0:02:51]} 15. b3 {[%clk 0:02:07]}  a5 {[%clk 0:02:48]} 16. Rfd1 {[%clk 0:02:02]}  Qc5 {[%clk 0:02:32]} 17. Na4 {[%clk 0:01:59]}  Qa7 {[%clk 0:02:26]} 18. Rc2 {[%clk 0:01:49]}  Bd7 {[%clk 0:02:03]} 19. Nc3 {[%clk 0:01:45]}  Bc6 {[%clk 0:02:04]} 20. Nd5 {[%clk 0:01:21]}  Kf8 {[%clk 0:01:55]} 21. Rdc1 {[%clk 0:01:14]}  Qc5 {[%clk 0:01:52]} 22. h4 {[%clk 0:01:05]}  e6 {[%clk 0:01:48]} 23. Nc3 {[%clk 0:01:02]}  Rd8 {[%clk 0:01:47]} 24. Qf4 {[%clk 0:00:52]}  Qe5 {[%clk 0:01:40]} 25. Qe3 {[%clk 0:00:47]}  Qd4 {[%clk 0:01:36]} 26. Qf4 {[%clk 0:00:38]}  Qf6 {[%clk 0:01:36]} 27. Qg3 {[%clk 0:00:24]}  Bh6 {[%clk 0:01:36]} 28. Rf1 {[%clk 0:00:23]}  Bf4 {[%clk 0:01:33]} 29. Qh3 {[%clk 0:00:21]}  Be5 {[%clk 0:01:31]} 30. h5 {[%clk 0:00:14]}  g5 {[%clk 0:01:31]} 31. h6 {[%clk 0:00:07]}  Rac8 {[%clk 0:01:29]} 32. Re1 {[%clk 0:00:04]}  Ke7 {[%clk 0:01:19]} 33. Bd1 {[%clk 0:00:05]}  g4 {[%clk 0:01:12]} 34. Qxg4 {[%clk 0:00:04]}  Rg8 {[%clk 0:01:13]} 35. Qf3 {[%clk 0:00:03]}  Qxh6 {[%clk 0:01:12]} 36. Nd5+ {[%clk 0:00:03]}  exd5 {[%clk 0:01:08]} 37. exd5 {[%clk 0:00:04]}  Qh2+ {[%clk 0:01:07]} 38. Kf1 {[%clk 0:00:04]}  Bd7 {[%clk 0:01:08]} 39. Re4 {[%clk 0:00:02]}  Qh1+ {[%clk 0:01:00]} 40. Ke2 {[%clk 0:00:02]}  Qxg2 {[%clk 0:01:01]} 41. c5 {[%clk 0:00:02]}  Qxf3+ {[%clk 0:01:00]} 42. Kxf3 {[%clk 0:00:01]}  Bf5 {[%clk 0:01:00]} 43. cxd6+ {[%clk 0:00:02]}  Kxd6 {[%clk 0:01:01]} 44. Rxc8 {[%clk 0:00:02]}  Bxe4+ {[%clk 0:01:01]} 0-1


[Site "https://www.chess.com"]

[Event "Titled Tuesday Blitz August 23 Late 2022"]
[White "Hnydiuk, Aleksander"]
[Black "Zhigalko, Sergei"]
[WhiteFideId "1109057"]
[BlackFideId "13502956"]
[WhiteElo "2374"]
[BlackElo "2662"]
[Result "0-1"]
[Round "06"]
[TimeControl "180+1"]
[Date "2022.08.23"]
[WhiteClock "0:00:12"]
[BlackClock "0:00:02"]

1. e4 {[%clk 0:03:00]}  c5 {[%clk 0:03:00]} 2. Nf3 {[%clk 0:03:01]}  Nc6 {[%clk 0:03:00]} 3. d4 {[%clk 0:03:01]}  cxd4 {[%clk 0:03:01]} 4. Nxd4 {[%clk 0:03:02]}  Nf6 {[%clk 0:03:02]} 5. Nc3 {[%clk 0:03:02]}  e5 {[%clk 0:03:02]} 6. Ndb5 {[%clk 0:03:02]}  d6 {[%clk 0:03:03]} 7. Bg5 {[%clk 0:03:03]}  a6 {[%clk 0:03:03]} 8. Na3 {[%clk 0:03:03]}  b5 {[%clk 0:03:04]} 9. Nd5 {[%clk 0:03:01]}  Be7 {[%clk 0:03:04]} 10. Bxf6 {[%clk 0:03:02]}  Bxf6 {[%clk 0:03:05]} 11. c3 {[%clk 0:03:02]}  Bg5 {[%clk 0:03:05]} 12. Nc2 {[%clk 0:03:03]}  Ne7 {[%clk 0:03:05]} 13. a4 {[%clk 0:02:59]}  bxa4 {[%clk 0:03:05]} 14. Ncb4 {[%clk 0:02:59]}  O-O {[%clk 0:03:05]} 15. Rxa4 {[%clk 0:02:50]}  a5 {[%clk 0:03:04]} 16. Nxe7+ {[%clk 0:02:46]}  Qxe7 {[%clk 0:03:05]} 17. Nd5 {[%clk 0:02:46]}  Qb7 {[%clk 0:03:05]} 18. Ra2 {[%clk 0:02:40]}  Be6 {[%clk 0:02:53]} 19. Bc4 {[%clk 0:02:23]}  Rfc8 {[%clk 0:02:51]} 20. Qd3 {[%clk 0:02:23]}  Rc5 {[%clk 0:01:54]} 21. O-O {[%clk 0:02:19]}  Kh8 {[%clk 0:01:49]} 22. Rfa1 {[%clk 0:02:17]}  f5 {[%clk 0:01:48]} 23. f3 {[%clk 0:01:57]}  fxe4 {[%clk 0:01:26]} 24. fxe4 {[%clk 0:01:58]}  Rf8 {[%clk 0:01:26]} 25. Kh1 {[%clk 0:01:44]}  h6 {[%clk 0:01:04]} 26. b3 {[%clk 0:01:41]}  Qf7 {[%clk 0:00:50]} 27. h3 {[%clk 0:01:35]}  Qh5 {[%clk 0:00:46]} 28. Rxa5 {[%clk 0:01:21]}  Rxa5 {[%clk 0:00:41]} 29. Rxa5 {[%clk 0:01:22]}  Rf2 {[%clk 0:00:25]} 30. Ra8+ {[%clk 0:01:13]}  Kh7 {[%clk 0:00:25]} 31. Ra1 {[%clk 0:01:13]}  Rd2 {[%clk 0:00:09]} 32. Qf1 {[%clk 0:01:12]}  Bg4 {[%clk 0:00:05]} 33. Kg1 {[%clk 0:00:56]}  Qh4 {[%clk 0:00:04]} 34. Qe1 {[%clk 0:00:40]}  Qxe1+ {[%clk 0:00:04]} 35. Rxe1 {[%clk 0:00:39]}  Bd1 {[%clk 0:00:04]} 36. b4 {[%clk 0:00:33]}  Bh4 {[%clk 0:00:02]} 37. Rf1 {[%clk 0:00:30]}  Bc2 {[%clk 0:00:02]} 38. Nc7 {[%clk 0:00:12]}  Bxe4 {[%clk 0:00:02]} 39. Bd5 {[%clk 0:00:12]}  Bxd5 {[%clk 0:00:02]} 0-1


[Site "https://www.chess.com"]

[Event "Titled Tuesday Blitz August 23 Late 2022"]
[White "Howell, David W L"]
[Black "Andreikin, Dmitry"]
[WhiteFideId "410608"]
[BlackFideId "4158814"]
[WhiteElo "2559"]
[BlackElo "2736"]
[Result "1/2-1/2"]
[Round "06"]
[TimeControl "180+1"]
[Date "2022.08.23"]
[WhiteClock "0:00:10"]
[BlackClock "0:00:19"]

1. e4 {[%clk 0:03:00]}  c5 {[%clk 0:02:54]} 2. c3 {[%clk 0:03:00]}  d5 {[%clk 0:02:51]} 3. exd5 {[%clk 0:03:01]}  Qxd5 {[%clk 0:02:52]} 4. d4 {[%clk 0:03:01]}  Nf6 {[%clk 0:02:52]} 5. Nf3 {[%clk 0:03:01]}  e6 {[%clk 0:02:53]} 6. Be3 {[%clk 0:02:58]}  Nc6 {[%clk 0:02:46]} 7. a3 {[%clk 0:02:53]}  cxd4 {[%clk 0:02:40]} 8. cxd4 {[%clk 0:02:54]}  Qa5+ {[%clk 0:02:33]} 9. Nc3 {[%clk 0:02:54]}  Ne4 {[%clk 0:02:30]} 10. Qb3 {[%clk 0:02:47]}  Bb4 {[%clk 0:02:24]} 11. Rc1 {[%clk 0:02:15]}  Bd6 {[%clk 0:02:23]} 12. Bd3 {[%clk 0:02:11]}  Nxc3 {[%clk 0:02:23]} 13. Qxc3 {[%clk 0:02:04]}  Qxc3+ {[%clk 0:02:20]} 14. Rxc3 {[%clk 0:02:05]}  Ne7 {[%clk 0:02:19]} 15. Be4 {[%clk 0:02:00]}  Nd5 {[%clk 0:02:19]} 16. Bxd5 {[%clk 0:02:00]}  exd5 {[%clk 0:02:20]} 17. Ne5 {[%clk 0:01:52]}  Bf5 {[%clk 0:02:10]} 18. Kd2 {[%clk 0:01:50]}  f6 {[%clk 0:02:05]} 19. Nd3 {[%clk 0:01:49]}  Bxd3 {[%clk 0:02:02]} 20. Kxd3 {[%clk 0:01:48]}  Kd7 {[%clk 0:02:02]} 21. Rhc1 {[%clk 0:01:40]}  g5 {[%clk 0:01:53]} 22. h3 {[%clk 0:01:30]}  b6 {[%clk 0:01:48]} 23. a4 {[%clk 0:01:23]}  h5 {[%clk 0:01:48]} 24. Bd2 {[%clk 0:01:10]}  Rhe8 {[%clk 0:01:43]} 25. Rb3 {[%clk 0:01:04]}  Rac8 {[%clk 0:01:40]} 26. Rxc8 {[%clk 0:00:56]}  Rxc8 {[%clk 0:01:41]} 27. a5 {[%clk 0:00:55]}  Bc7 {[%clk 0:01:34]} 28. axb6 {[%clk 0:00:52]}  axb6 {[%clk 0:01:32]} 29. Ra3 {[%clk 0:00:51]}  g4 {[%clk 0:01:26]} 30. hxg4 {[%clk 0:00:45]}  hxg4 {[%clk 0:01:27]} 31. Ra1 {[%clk 0:00:39]}  Rh8 {[%clk 0:01:26]} 32. g3 {[%clk 0:00:37]}  f5 {[%clk 0:01:19]} 33. Re1 {[%clk 0:00:32]}  Bd6 {[%clk 0:01:15]} 34. Ra1 {[%clk 0:00:29]}  Kc6 {[%clk 0:01:10]} 35. Rc1+ {[%clk 0:00:24]}  Kb5 {[%clk 0:01:08]} 36. Re1 {[%clk 0:00:24]}  Kc6 {[%clk 0:00:38]} 37. Re6 {[%clk 0:00:21]}  Kd7 {[%clk 0:00:39]} 38. Rf6 {[%clk 0:00:20]}  Rh5 {[%clk 0:00:36]} 39. Rf7+ {[%clk 0:00:11]}  Kc6 {[%clk 0:00:30]} 40. Rf6 {[%clk 0:00:10]}  Kd7 {[%clk 0:00:31]} 41. Rf7+ {[%clk 0:00:10]}  Kc6 {[%clk 0:00:30]} 42. Rf6 {[%clk 0:00:10]}  Kc7 {[%clk 0:00:23]} 43. Rf7+ {[%clk 0:00:10]}  Kc6 {[%clk 0:00:19]} 1/2-1/2


[Site "https://www.chess.com"]

[Event "Titled Tuesday Blitz August 23 Late 2022"]
[White "Kambrath, Yannick"]
[Black "Melkumyan, Hrant"]
[WhiteFideId "20632525"]
[BlackFideId "13302485"]
[WhiteElo "2236"]
[BlackElo "2604"]
[Result "0-1"]
[Round "06"]
[TimeControl "180+1"]
[Date "2022.08.23"]
[WhiteClock "0:00:05"]
[BlackClock "0:00:19"]

1. e4 {[%clk 0:03:00]}  c5 {[%clk 0:02:59]} 2. Nf3 {[%clk 0:03:01]}  Nc6 {[%clk 0:02:59]} 3. Bb5 {[%clk 0:02:59]}  g6 {[%clk 0:02:59]} 4. Bxc6 {[%clk 0:02:59]}  bxc6 {[%clk 0:02:59]} 5. O-O {[%clk 0:02:58]}  Bg7 {[%clk 0:03:00]} 6. Re1 {[%clk 0:02:45]}  Qc7 {[%clk 0:02:59]} 7. c3 {[%clk 0:02:37]}  d6 {[%clk 0:02:50]} 8. h3 {[%clk 0:02:34]}  e5 {[%clk 0:02:45]} 9. d4 {[%clk 0:02:31]}  cxd4 {[%clk 0:02:46]} 10. cxd4 {[%clk 0:02:31]}  exd4 {[%clk 0:02:44]} 11. Nxd4 {[%clk 0:02:29]}  Nf6 {[%clk 0:02:44]} 12. Bf4 {[%clk 0:02:13]}  O-O {[%clk 0:02:29]} 13. Nc3 {[%clk 0:01:47]}  Re8 {[%clk 0:02:23]} 14. Qa4 {[%clk 0:01:42]}  Bb7 {[%clk 0:01:52]} 15. Rad1 {[%clk 0:01:38]}  Nd7 {[%clk 0:01:46]} 16. Qa3 {[%clk 0:01:36]}  Ne5 {[%clk 0:01:45]} 17. Re2 {[%clk 0:00:59]}  a5 {[%clk 0:01:43]} 18. Rc2 {[%clk 0:00:58]}  Qb6 {[%clk 0:01:32]} 19. Na4 {[%clk 0:00:46]}  Qb4 {[%clk 0:01:29]} 20. Qxb4 {[%clk 0:00:24]}  axb4 {[%clk 0:01:29]} 21. b3 {[%clk 0:00:24]}  c5 {[%clk 0:01:25]} 22. Nb5 {[%clk 0:00:24]}  Bxe4 {[%clk 0:01:22]} 23. Rcd2 {[%clk 0:00:23]}  Bc6 {[%clk 0:01:07]} 24. Nc7 {[%clk 0:00:21]}  Bxa4 {[%clk 0:01:04]} 25. bxa4 {[%clk 0:00:20]}  Nc4 {[%clk 0:00:56]} 26. Rc2 {[%clk 0:00:13]}  Bc3 {[%clk 0:00:42]} 27. Bxd6 {[%clk 0:00:09]}  Nxd6 {[%clk 0:00:30]} 28. Nxa8 {[%clk 0:00:07]}  Nf5 {[%clk 0:00:20]} 29. Nb6 {[%clk 0:00:05]}  Nd4 {[%clk 0:00:19]} 0-1


[Site "https://www.chess.com"]